fUSD/lending_fUSD_20241203
["ID","MTS","AMOUNT","RATE_DAILY","PERIOD"]
[344046366,1733246366116,-1158.04,0.00025273,120]
[344046367,1733246366158,-300.4983008,0.00025273,120]
[344046368,1733246366197,-500.0,0.00025273,120]
[344046369,1733246366239,-500.0,0.00025273,120]
[344046370,1733246366281,-500.0,0.00025273,120]
[344046371,1733246366324,-1863.46,0.00025273,120]
[344046372,1733246366369,-500.0,0.00025273,120]
[344046373,1733246366412,-2006.93,0.00025273,120]
[344046374,1733246366454,-500.0,0.00025273,120]
[344046375,1733246366495,-500.0,0.00025273,120]
[344046376,1733246366536,-576.98,0.00025273,120]
[344046377,1733246366578,-512.02,0.00025273,120]
[344046378,1733246366620,-626.88,0.00025273,120]
[344046379,1733246366663,-841.46,0.00025273,120]
[344046380,1733246366703,-500.0,0.00025273,120]
[344046381,1733246366743,-934.65,0.00025273,120]
[344046382,1733246366785,-713.37,0.00025273,120]
[344046383,1733246366830,-1364.74,0.00025273,120]
[344046384,1733246366871,-2752.08,0.00025273,120]
[344046385,1733246366912,-500.0,0.00025273,120]
[344046386,1733246366954,-4536.75,0.00025273,120]
[344046387,1733246366995,-500.0,0.00025273,120]
[344046388,1733246367037,-3415.18,0.00025273,120]
[344046389,1733246367079,-3198.59,0.00025273,120]
[344046390,1733246367120,-500.0,0.00025273,120]
[344046391,1733246367165,-810.96,0.00025273,120]
[344046392,1733246367206,-1173.18,0.00025273,120]
[344046393,1733246367247,-987.23,0.00025273,120]
[344046394,1733246367289,-1015.28,0.00025273,120]
[344046395,1733246367332,-1445.94,0.00025273,120]
[344046396,1733246367374,-4003.87,0.00025273,120]
[344046397,1733246367416,-500.0,0.00025273,120]
[344046398,1733246367459,-4399.3,0.00025273,120]
[344046399,1733246367501,-1286.7,0.00025273,120]
[344046400,1733246367545,-723.52,0.00025273,120]
[344046401,1733246367589,-500.0,0.00025273,120]
[344046402,1733246367632,-2199.59,0.00025273,120]
[344046403,1733246367674,-500.0,0.00025273,120]
[344046404,1733246367716,-4043.06,0.00025273,120]
[344046405,1733246367759,-540.12,0.00025273,120]
[344046406,1733246367802,-500.0,0.00025273,120]
[344046407,1733246367847,-500.0,0.00025273,120]
[344046408,1733246367891,-500.0,0.00025273,120]
[344046409,1733246367938,-988.8,0.00025273,120]
[344046410,1733246367982,-3104.61,0.00025273,120]
[344046411,1733246368026,-500.0,0.00025273,120]
[344046412,1733246368070,-1287.7,0.00025273,120]
[344046413,1733246368113,-1289.84,0.00025273,120]
[344046414,1733246368155,-500.0,0.00025273,120]
[344046415,1733246368196,-1326.15,0.00025273,120]
[344046416,1733246368237,-1031.36,0.00025273,120]
[344046417,1733246368281,-1503.32,0.00025273,120]
[344046418,1733246368323,-500.0,0.00025273,120]
[344046419,1733246368368,-500.0,0.00025273,120]
[344046420,1733246368412,-1076.98,0.00025273,120]
[344046421,1733246368456,-1473.57,0.00025273,120]
[344046422,1733246368500,-300.0,0.00025273,120]
[344046423,1733246368544,-1098.01,0.00025273,120]
[344046424,1733246368586,-500.0,0.00025273,120]
[344046425,1733246368628,-1038.77,0.00025273,120]
[344046426,1733246368670,-1516.93,0.00025273,120]
[344046427,1733246368714,-500.0,0.00025273,120]
[344046428,1733246368756,-500.0,0.00025273,120]
[344046429,1733246368798,-323.47054117,0.00025273,120]
[344046430,1733246368839,-1041.72,0.00025273,120]
[344046431,1733246368880,-554.1,0.00025273,120]
[344046432,1733246368918,-1145.92,0.00025273,120]
[344046433,1733246368955,-500.0,0.00025273,120]
[344046434,1733246368991,-500.0,0.00025273,120]
[344046435,1733246369028,-903.89,0.00025273,120]
[344046436,1733246369064,-1732.34,0.00025273,120]
[344046437,1733246369100,-500.0,0.00025273,120]
[344046438,1733246369137,-1707.71,0.00025273,120]
[344046439,1733246369188,-500.0,0.00025273,120]
[344046440,1733246369231,-500.0,0.00025273,120]
[344046441,1733246369477,-500.0,0.00025273,120]
[344046442,1733246369555,-1271.71,0.00025273,120]
[344046443,1733246369597,-500.0,0.00025273,120]
[344046444,1733246369639,-1072.5,0.00025273,120]
[344046445,1733246369676,-2914.29,0.00025273,120]
[344046446,1733246369713,-393.30547634,0.00025273,120]
[344046447,1733246369751,-500.0,0.00025273,120]
[344046448,1733246369787,-1201.64,0.00025273,120]
[344046449,1733246369823,-500.0,0.00025273,120]
[344046450,1733246369859,-500.0,0.00025273,120]
[344046451,1733246369895,-156.11816701,0.00025273,120]
[344046452,1733246369934,-1366.43,0.00025273,120]
[344046453,1733246369972,-500.0,0.00025273,120]
[344046454,1733246370011,-677.2,0.00025273,120]
[344046455,1733246370050,-1149.0,0.00025273,120]
[344046456,1733246370088,-500.0,0.00025273,120]
[344046457,1733246370128,-1808.01,0.00025273,120]
[344046458,1733246370175,-898.11,0.00025273,120]
[344046459,1733246370217,-500.0,0.00025273,120]
[344046460,1733246370261,-2200.28,0.00025273,120]
[344046461,1733246370303,-500.0,0.00025273,120]
[344046462,1733246370343,-500.0,0.00025273,120]
[344046463,1733246370383,-500.0,0.00025273,120]
[344046464,1733246370423,-500.0,0.00025273,120]
[344046465,1733246370462,-500.0,0.00025273,120]
[344046466,1733246370503,-500.0,0.00025273,120]
[344046467,1733246370544,-500.0,0.00025273,120]
[344046468,1733246370585,-500.0,0.00025273,120]
[344046469,1733246370627,-1586.18,0.00025273,120]
[344046470,1733246370671,-333.6158716,0.00025273,120]
[344046471,1733246370714,-500.0,0.00025273,120]
[344046472,1733246370756,-500.0,0.00025273,120]
[344046473,1733246370797,-2106.08,0.00025273,120]
[344046474,1733246370838,-500.0,0.00025273,120]
[344046475,1733246370878,-729.66,0.00025273,120]
[344046476,1733246370917,-500.0,0.00025273,120]
[344046477,1733246370957,-500.0,0.00025273,120]
[344046478,1733246370997,-1230.9,0.00025273,120]
[344046479,1733246371038,-3434.75,0.00025273,120]
[344046480,1733246371078,-500.0,0.00025273,120]
[344046481,1733246371117,-500.0,0.00025273,120]
[344046482,1733246371165,-500.0,0.00025273,30]
[344046483,1733246371210,-500.0,0.00025273,120]
[344046484,1733246371252,-500.0,0.00025273,120]
[344046485,1733246371295,-3506.65,0.00025273,120]
[344046486,1733246371338,-500.0,0.00025273,120]
[344046487,1733246371381,-785.58,0.00025273,120]
[344046488,1733246371424,-1768.26,0.00025273,120]
[344046489,1733246371466,-500.0,0.00025273,120]
[344046490,1733246371509,-465.72794502,0.00025273,120]
[344046491,1733246371552,-500.0,0.00025273,120]
[344046492,1733246371598,-1179.11,0.00025273,120]
[344046493,1733246371642,-500.0,0.00025273,120]
[344046494,1733246371699,-500.0,0.00025273,120]
[344046495,1733246371742,-500.0,0.00025273,120]
[344046496,1733246371786,-741.56,0.00025273,120]
[344046497,1733246371828,-500.0,0.00025273,120]
[344046498,1733246371872,-1148.12,0.00025273,120]
[344046499,1733246371916,-976.18,0.00025273,120]
[344046500,1733246371961,-500.0,0.00025273,120]
[344046501,1733246372004,-500.0,0.00025273,120]
[344046502,1733246372047,-500.0,0.00025273,120]
[344046503,1733246372092,-646.96,0.00025273,120]
[344046504,1733246372135,-2297.92,0.00025273,120]
[344046505,1733246372185,-3346.01,0.00025273,120]
[344046506,1733246372230,-2351.25,0.00025273,120]
[344046507,1733246372274,-2656.78,0.00025273,120]
[344046508,1733246372317,-500.0,0.00025273,120]
[344046509,1733246372361,-500.0,0.00025273,120]
[344046510,1733246372404,-1084.25,0.00025273,120]
[344046511,1733246372448,-1091.34,0.00025273,120]
[344046512,1733246372493,-500.0,0.00025273,120]
[344046513,1733246372537,-1582.14,0.00025273,120]
[344046514,1733246372579,-1078.34,0.00025273,120]
[344046515,1733246372621,-1006.13,0.00025273,120]
[344046516,1733246372664,-500.0,0.00025273,30]
[344046517,1733246372726,-2432.21,0.00025273,120]
[344046518,1733246372778,-500.0,0.00025273,120]
[344046519,1733246372820,-500.0,0.00025273,120]
[344046520,1733246372863,-500.0,0.00025273,120]
[344046521,1733246372906,-686.36,0.00025273,120]
[344046522,1733246372946,-504.52286054,0.00025273,120]
[344046523,1733246372988,-837.7,0.00025273,120]
[344046524,1733246373030,-680.24,0.00025273,120]
[344046525,1733246373073,-500.0,0.00025273,120]
[344046526,1733246373117,-1816.21,0.00025273,120]
[344046527,1733246373173,-500.0,0.00025273,120]
[344046528,1733246373218,-1501.21,0.00025273,120]
[344046529,1733246373263,-751.27,0.00025273,120]
[344046530,1733246373307,-1139.25,0.00025273,120]
[344046531,1733246373350,-500.0,0.00025273,120]
[344046532,1733246373395,-500.0,0.00025273,120]
[344046533,1733246373438,-1054.65,0.00025273,120]
[344046534,1733246373482,-2443.1,0.00025273,120]
[344046535,1733246373528,-500.0,0.00025273,120]
[344046536,1733246373822,-616.48,0.00025273,120]
[344046537,1733246373869,-500.0,0.00025273,120]
[344046538,1733246373915,-660.7,0.00025273,120]
[344046539,1733246373960,-1094.37,0.00025273,120]
[344046540,1733246374004,-2231.72,0.00025273,120]
[344046541,1733246374053,-500.0,0.00025273,120]
[344046542,1733246374097,-500.0,0.00025273,120]
[344046543,1733246374142,-500.0,0.00025273,120]
[344046544,1733246374190,-3514.25,0.00025273,120]
[344046545,1733246374234,-681.68,0.00025273,120]
[344046546,1733246374280,-500.0,0.00025273,120]
[344046547,1733246374326,-1553.77,0.00025273,120]
[344046548,1733246374374,-500.0,0.00025273,120]
[344046549,1733246374419,-501.20298469,0.00025273,120]
[344046550,1733246374464,-694.79,0.00025273,120]
[344046551,1733246374507,-508.48516981,0.00025273,120]
[344046552,1733246374550,-500.0,0.00025273,120]
[344046553,1733246374593,-500.0,0.00025273,120]
[344046554,1733246374636,-500.0,0.00025273,120]
[344046555,1733246374681,-867.92,0.00025273,120]
[344046556,1733246374723,-500.0,0.00025273,120]
[344046557,1733246374765,-1452.32,0.00025273,120]
[344046558,1733246374807,-686.72,0.00025273,120]
[344046559,1733246374850,-500.0,0.00025273,120]
[344046560,1733246374894,-500.0,0.00025273,120]
[344046561,1733246374940,-1210.4,0.00025273,120]
[344046562,1733246374983,-1184.23,0.00025273,120]
[344046563,1733246375028,-2207.26,0.00025273,120]
[344046564,1733246375072,-1601.69,0.00025273,120]
[344046565,1733246375114,-617.99736581,0.00025273,120]
[344046566,1733246375161,-1223.5,0.00025273,120]
[344046567,1733246375205,-4766.78,0.00025273,120]
[344046568,1733246375249,-500.0,0.00025273,120]
[344046569,1733246375292,-500.0,0.00025273,120]
[344046570,1733246375338,-1060.91,0.00025273,120]
[344046571,1733246375384,-2538.88,0.00025273,120]
[344046572,1733246375434,-500.0,0.00025273,120]
[344046573,1733246375479,-1210.81,0.00025273,120]
[344046574,1733246375525,-500.0,0.00025273,120]
[344046575,1733246375570,-1948.8,0.00025273,120]
[344046576,1733246375614,-668.19,0.00025273,120]
[344046577,1733246375657,-500.0,0.00025273,120]
[344046578,1733246375700,-500.0,0.00025273,120]
[344046579,1733246375741,-1277.13,0.00025273,120]
[344046580,1733246375783,-500.0,0.00025273,120]
[344046581,1733246375825,-2688.43,0.00025273,120]
[344046582,1733246375868,-500.0,0.00025273,120]
[344046583,1733246375909,-649.74,0.00025273,120]
[344046584,1733246375951,-500.0,0.00025273,120]
[344046585,1733246375993,-500.0,0.00025273,120]
[344046586,1733246376034,-500.0,0.00025273,120]
[344046587,1733246376075,-500.0,0.00025273,120]
[344046588,1733246376120,-11479.25,0.00025273,120]
[344046589,1733246376164,-1947.01,0.00025273,120]
[344046590,1733246376205,-500.0,0.00025273,120]
[344046591,1733246376248,-2011.93,0.00025273,120]
[344046592,1733246376291,-500.0,0.00025273,120]
[344046593,1733246376334,-1154.54,0.00025273,120]
[344046594,1733246376379,-500.0,0.00025273,120]
[344046595,1733246376436,-772.41,0.00025273,120]
[344046596,1733246376481,-1123.43,0.00025273,120]
[344046597,1733246376527,-2871.45,0.00025273,120]
[344046598,1733246376572,-500.0,0.00025273,120]
[344046599,1733246376617,-1522.72,0.00025273,120]
[344046600,1733246376662,-500.0,0.00025273,120]
[344046601,1733246376706,-500.0,0.00025273,120]
[344046602,1733246376750,-2669.91,0.00025273,120]
[344046603,1733246376795,-500.0,0.00025273,120]
[344046604,1733246376839,-583.43734598,0.00025273,120]
[344046605,1733246376888,-500.0,0.00025273,120]
[344046606,1733246376936,-500.0,0.00025273,120]
[344046607,1733246376980,-2342.96,0.00025273,120]
[344046608,1733246377023,-567.5,0.00025273,120]
[344046609,1733246377065,-528.06,0.00025273,120]
[344046610,1733246377110,-1577.75,0.00025273,120]
[344046611,1733246377154,-500.0,0.00025273,120]
[344046612,1733246377199,-500.0,0.00025273,30]
[344046613,1733246377242,-728.69,0.00025273,120]
[344046614,1733246377287,-679.58,0.00025273,120]
[344046615,1733246377329,-500.0,0.00025273,120]
[344046616,1733246377372,-500.0,0.00025273,120]
[344046617,1733246377414,-653.72,0.00025273,120]
[344046618,1733246377456,-3601.58,0.00025273,120]
[344046619,1733246377499,-500.0,0.00025273,120]
[344046620,1733246377543,-883.17,0.00025273,120]
[344046621,1733246377586,-1060.08,0.00025273,120]
[344046622,1733246377627,-181.27997232,0.00025273,120]
[344046623,1733246377670,-500.0,0.00025273,120]
[344046624,1733246377712,-628.18,0.00025273,120]
[344046625,1733246377754,-983.36,0.00025273,120]
[344046626,1733246377796,-2206.12,0.00025273,120]
[344046627,1733246377838,-500.0,0.00025273,120]
[344046628,1733246377883,-500.0,0.00025273,120]
[344046629,1733246377929,-586.83,0.00025273,120]
[344046630,1733246377973,-500.0,0.00025273,120]
[344046631,1733246378257,-500.0,0.00025273,120]
[344046632,1733246378300,-1092.46,0.00025273,120]
[344046633,1733246378343,-331.95426187,0.00025273,120]
[344046634,1733246378386,-1164.12,0.00025273,120]
[344046635,1733246378430,-500.0,0.00025273,120]
[344046636,1733246378472,-777.01,0.00025273,120]
[344046637,1733246378513,-1486.63,0.00025273,120]
[344046638,1733246378556,-500.0,0.00025273,120]
[344046639,1733246378599,-1703.77,0.00025273,120]
[344046640,1733246378643,-500.0,0.00025273,120]
[344046641,1733246378687,-1012.5,0.00025273,120]
[344046642,1733246378730,-1064.47,0.00025273,120]
[344046643,1733246378771,-2212.28,0.00025273,120]
[344046644,1733246378812,-1439.03,0.00025273,120]
[344046645,1733246378852,-500.0,0.00025273,120]
[344046646,1733246378898,-500.0,0.00025273,120]
[344046647,1733246378945,-500.0,0.00025273,120]
[344046648,1733246378986,-500.0,0.00025273,120]
[344046649,1733246379030,-954.23,0.00025273,120]
[344046650,1733246379074,-1494.75,0.00025273,120]
[344046651,1733246379118,-500.0,0.00025273,120]
[344046652,1733246379162,-1293.95,0.00025273,120]
[344046653,1733246379207,-4964.27,0.00025273,120]
[344046654,1733246379250,-2631.99,0.00025273,120]
[344046655,1733246379292,-3929.33,0.00025273,120]
[344046656,1733246379337,-500.0,0.00025273,120]
[344046657,1733246379381,-1895.25,0.00025273,120]
[344046658,1733246379424,-2908.48,0.00025273,120]
[344046659,1733246379467,-500.0,0.00025273,120]
[344046660,1733246379512,-669.74,0.00025273,120]
[344046661,1733246379554,-1378.03,0.00025273,120]
[344046662,1733246379594,-1133.09,0.00025273,120]
[344046663,1733246379633,-1293.32,0.00025273,120]
[344046664,1733246379672,-948.42,0.00025273,120]
[344046665,1733246379711,-2148.51,0.00025273,120]
[344046666,1733246379750,-818.59,0.00025273,120]
[344046667,1733246379790,-500.0,0.00025273,120]
[344046668,1733246379832,-4345.48,0.00025273,120]
[344046669,1733246379872,-500.0,0.00025273,120]
[344046670,1733246379913,-3128.05,0.00025273,120]
[344046671,1733246379953,-4132.81,0.00025273,120]
[344046672,1733246379992,-500.0,0.00025273,60]
[344046673,1733246380030,-500.0,0.00025273,120]
[344046674,1733246380068,-692.33,0.00025273,120]
[344046675,1733246380107,-2434.08,0.00025273,120]
[344046676,1733246380145,-500.0,0.00025273,120]
[344046677,1733246380186,-500.0,0.00025273,120]
[344046678,1733246380226,-1496.3,0.00025273,120]
[344046679,1733246380265,-2298.68,0.00025273,120]
[344046680,1733246380304,-596.36,0.00025273,120]
[344046681,1733246380343,-627.97,0.00025273,120]
[344046682,1733246380385,-4752.11,0.00025273,120]
[344046683,1733246380425,-500.0,0.00025273,120]
[344046684,1733246380465,-500.0,0.00025273,120]
[344046685,1733246380507,-2364.99,0.00025273,120]
[344046686,1733246380547,-733.41,0.00025273,120]
[344046687,1733246380588,-2379.5,0.00025273,120]
[344046688,1733246380627,-500.0,0.00025273,120]
[344046689,1733246380667,-2237.15,0.00025273,120]
[344046690,1733246380707,-2084.94,0.00025273,120]
[344046691,1733246380751,-9370.58,0.00025273,120]
[344046692,1733246380793,-611.15,0.00025273,120]
[344046693,1733246380837,-1926.38,0.00025273,120]
[344046694,1733246380880,-1381.28,0.00025273,120]
[344046695,1733246380922,-500.0,0.00025273,120]
[344046696,1733246380963,-775.39,0.00025273,120]
[344046697,1733246381004,-3684.94,0.00025273,120]
[344046698,1733246381046,-23749.13,0.00025273,120]
[344046699,1733246381087,-914.5,0.00025273,120]
[344046700,1733246381129,-1132.02,0.00025273,120]
[344046701,1733246381170,-841.83,0.00025273,120]
[344046702,1733246381212,-903.05,0.00025273,120]
[344046703,1733246381254,-1802.22,0.00025273,120]
[344046704,1733246381297,-1089.83,0.00025273,120]
[344046705,1733246381338,-543.05,0.00025273,120]
[344046706,1733246381379,-500.0,0.00025273,120]
[344046707,1733246381420,-1299.06,0.00025273,120]
[344046708,1733246381463,-2068.96,0.00025273,120]
[344046709,1733246381504,-1458.97,0.00025273,120]
[344046710,1733246381545,-500.0,0.00025273,30]
[344046711,1733246381585,-500.0,0.00025273,120]
[344046712,1733246381626,-2922.34,0.00025273,120]
[344046713,1733246381669,-5491.84,0.00025273,120]
[344046714,1733246381711,-1610.78,0.00025273,120]
[344046715,1733246381751,-2244.01,0.00025273,120]
[344046716,1733246381790,-1747.55,0.00025273,120]
[344046717,1733246381828,-500.0,0.00025273,120]
[344046718,1733246381868,-2322.03,0.00025273,120]
[344046719,1733246381908,-1234.87,0.00025273,120]
[344046720,1733246381945,-500.0,0.00025273,120]
[344046721,1733246381983,-1662.03,0.00025273,120]
[344046722,1733246382020,-500.0,0.00025273,120]
[344046723,1733246382057,-500.0,0.00025273,120]
[344046724,1733246382094,-1234.8,0.00025273,120]
[344046725,1733246382416,-500.0,0.00025273,120]
[344046726,1733246382458,-500.0,0.00025273,120]
[344046727,1733246382499,-1418.92,0.00025273,120]
[344046728,1733246382539,-1524.57,0.00025273,120]
[344046729,1733246382577,-2548.64,0.00025273,120]
[344046730,1733246382618,-2073.91,0.00025273,120]
[344046731,1733246382658,-1271.31,0.00025273,120]
[344046732,1733246382699,-1073.09,0.00025273,120]
[344046733,1733246382738,-1183.71,0.00025273,120]
[344046734,1733246382778,-500.0,0.00025273,120]
[344046735,1733246382819,-1581.55,0.00025273,120]
[344046736,1733246382862,-1093.09,0.00025273,120]
[344046737,1733246382905,-2016.93,0.00025273,120]
[344046738,1733246382946,-500.0,0.00025273,120]
[344046739,1733246382986,-500.0,0.00025273,120]
[344046740,1733246383028,-1333.95,0.00025273,120]
[344046741,1733246383071,-500.0,0.00025273,120]
[344046742,1733246383113,-500.0,0.00025273,90]
[344046743,1733246383157,-2825.4,0.00025273,120]
[344046744,1733246383200,-781.0,0.00025273,120]
[344046745,1733246383242,-4081.67,0.00025273,120]
[344046746,1733246383284,-22005.41,0.00025273,120]
[344046747,1733246383328,-558.61221974,0.00025273,120]
[344046748,1733246383371,-500.0,0.00025273,30]
[344046749,1733246383415,-399.58031708,0.00025273,120]
[344046750,1733246383459,-688.28,0.00025273,120]
[344046751,1733246383503,-2735.13,0.00025273,120]
[344046752,1733246383561,-4418.43,0.00025273,120]
[344046753,1733246383608,-2084.66,0.00025273,120]
[344046754,1733246383656,-1463.43,0.00025273,120]
[344046755,1733246383709,-1016.78,0.00025273,120]
[344046756,1733246383754,-500.0,0.00025273,120]
[344046757,1733246383799,-500.0,0.00025273,120]
[344046758,1733246383843,-500.0,0.00025273,120]
[344046759,1733246383891,-3331.14,0.00025273,120]
[344046760,1733246383941,-1431.24,0.00025273,120]
[344046761,1733246383985,-500.0,0.00025273,120]
[344046762,1733246384030,-14642.007,0.00025273,120]
[344046763,1733246384075,-852.3,0.00025273,120]
[344046764,1733246384119,-1735.21,0.00025273,120]
[344046765,1733246384165,-1339.19,0.00025273,120]
[344046766,1733246384213,-518.24,0.00025273,120]
[344046767,1733246384259,-3714.6,0.00025273,120]
[344046768,1733246384303,-500.0,0.00025273,120]
[344046769,1733246384353,-3215.5,0.00025273,120]
[344046770,1733246384399,-1120.17,0.00025273,120]
[344046771,1733246384447,-3321.09,0.00025273,120]
[344046772,1733246384497,-500.0,0.00025273,120]
[344046773,1733246384544,-1758.83,0.00025273,120]
[344046774,1733246384589,-500.0,0.00025273,120]
[344046775,1733246384634,-500.0,0.00025273,120]
[344046776,1733246384678,-1486.49,0.00025273,120]
[344046777,1733246384722,-365.39703718,0.00025273,120]
[344046778,1733246384770,-617.57,0.00025273,120]
[344046779,1733246384815,-2726.1,0.00025273,120]
[344046780,1733246384864,-500.0,0.00025273,120]
[344046781,1733246384911,-1047.13,0.00025273,120]
[344046782,1733246384957,-1143.32,0.00025273,120]
[344046783,1733246385001,-500.0,0.00025273,120]
[344046784,1733246385045,-6320.6,0.00025273,120]
[344046785,1733246385090,-500.0,0.00025273,120]
[344046786,1733246385134,-1146.57,0.00025273,120]
[344046787,1733246385182,-1251.8,0.00025273,120]
[344046788,1733246385227,-560.72,0.00025273,120]
[344046789,1733246385270,-500.0,0.00025273,120]
[344046790,1733246385314,-1286.83,0.00025273,120]
[344046791,1733246385357,-500.0,0.00025273,120]
[344046792,1733246385401,-1988.35,0.00025273,120]
[344046793,1733246385451,-1034.19,0.00025273,120]
[344046794,1733246385500,-500.0,0.00025273,120]
[344046795,1733246385546,-1020.72,0.00025273,120]
[344046796,1733246385591,-1053.47,0.00025273,120]
[344046797,1733246385635,-2975.69,0.00025273,120]
[344046798,1733246385679,-2151.16,0.00025273,120]
[344046799,1733246385721,-2039.97,0.00025273,120]
[344046800,1733246385766,-500.0,0.00025273,120]
[344046801,1733246385810,-666.63,0.00025273,120]
[344046802,1733246385857,-14943.14,0.00025273,120]
[344046803,1733246385902,-1500.0,0.00025273,120]
[344046804,1733246385949,-1238.29,0.00025273,120]
[344046805,1733246385993,-500.0,0.00025273,120]
[344046806,1733246386038,-1190.41,0.00025273,120]
[344046807,1733246386082,-1673.82,0.00025273,120]
[344046808,1733246386127,-4522.18,0.00025273,120]
[344046809,1733246386171,-2076.79,0.00025273,120]
[344046810,1733246386218,-500.0,0.00025273,120]
[344046811,1733246386267,-2426.33,0.00025273,120]
[344046812,1733246386315,-4582.659135,0.00025273,120]
[344046813,1733246386361,-500.0,0.00025273,120]
[344046814,1733246386406,-923.51,0.00025273,120]
[344046815,1733246386453,-1065.24,0.00025273,120]
[344046816,1733246386497,-2382.46,0.00025273,120]
[344046817,1733246386543,-500.0,0.00025273,120]
[344046818,1733246386588,-730.98,0.00025273,120]
[344046819,1733246387003,-666.16,0.00025273,120]
[344046820,1733246387083,-3964.5,0.00025273,120]
[344046821,1733246387127,-3683.25,0.00025273,120]
[344046822,1733246387172,-3164.786515,0.00025273,120]
[344046823,1733246387216,-500.0,0.00025273,120]
[344046824,1733246387260,-1130.39,0.00025273,120]
[344046825,1733246387316,-1929.21,0.00025273,120]
[344046826,1733246387363,-1425.11,0.00025273,120]
[344046827,1733246387407,-1322.04,0.00025273,120]
[344046828,1733246387455,-500.0,0.00025273,120]
[344046829,1733246387498,-514.61834501,0.00025273,120]
[344046830,1733246387545,-923.57,0.00025273,120]
[344046831,1733246387590,-500.0,0.00025273,120]
[344046832,1733246387633,-500.0,0.00025273,120]
[344046833,1733246387678,-500.0,0.00025273,120]
[344046834,1733246387722,-1668.49,0.00025273,120]
[344046835,1733246387765,-2376.66,0.00025273,120]
[344046836,1733246387807,-1502.95,0.00025273,120]
[344046837,1733246387856,-500.0,0.00025273,120]
[344046838,1733246387904,-1175.74,0.00025273,120]
[344046839,1733246387953,-1327.7,0.00025273,120]
[344046840,1733246387998,-1098.72,0.00025273,120]
[344046841,1733246388043,-500.0,0.00025273,120]
[344046842,1733246388088,-1137.75,0.00025273,120]
[344046843,1733246388136,-500.0,0.00025273,120]
[344046844,1733246388183,-1959.5,0.00025273,120]
[344046845,1733246388238,-8592.48,0.00025273,120]
[344046846,1733246388285,-625.08,0.00025273,120]
[344046847,1733246388333,-500.0,0.00025273,120]
[344046848,1733246388383,-1847.19,0.00025273,120]
[344046849,1733246388428,-500.0,0.00025273,120]
[344046850,1733246388476,-1500.21,0.00025273,120]
[344046851,1733246388523,-500.0,0.00025273,120]
[344046852,1733246388569,-1095.14,0.00025273,120]
[344046853,1733246388614,-989.91,0.00025273,120]
[344046854,1733246388658,-1129.91,0.00025273,120]
[344046855,1733246388705,-500.0,0.00025273,120]
[344046856,1733246388746,-500.0,0.00025273,120]
[344046857,1733246388788,-500.0,0.00025273,120]
[344046858,1733246388829,-1456.3,0.00025273,120]
[344046859,1733246388872,-1109.86,0.00025273,120]
[344046860,1733246388916,-500.0,0.00025273,120]
[344046861,1733246388961,-1458.18,0.00025273,120]
[344046862,1733246389003,-500.0,0.00025273,120]
[344046863,1733246389047,-500.0,0.00025273,120]
[344046864,1733246389092,-3219.04,0.00025273,120]
[344046865,1733246389137,-1619.82,0.00025273,120]